[Event "Germany Countries-chT Youth 2022"]
[Site "Wiesbaden"]
[Date "2022.10.01"]
[Round "1"]
[White "Sidletskyi, Ivan"]
[Black "Feidt, Jonas"]
[Result "1-0"]
[ECO "B12"]
[WhiteElo "2184"]
[BlackElo "1908"]
[Annotator "TA"]
[PlyCount "115"]
[EventDate "2022.09.28"]
[EventType "team-tourn"]
[EventRounds "7"]
[EventCountry "GER"]
[SourceTitle "playchess.com"]
[Source "ChessBase"]
[SourceQuality "1"]
[TimeControl "40/5400+30:1800+30"]

{[%evp 11,115,0,0,0,0,0,0,0,0,-12,-3,-2,-2,5,4,0,0,0,0,-15,-8,-7,-15,-19,0,-28,-34,-37,-35,-30,0,0,0,-20,-9,-2,-8,-12,0,0,0,0,0,0,0,0,0,0,0,0,0,0,0,0,0,0,0,0,0,0,0,0,0,-8,0,0,0,0,0,0,0,0,0,-8,14,14,13,14,14,13,39,39,635,612,1611,693,693,693,693,693,693,693,29972,29973,29973,29974,29973,29975,29974,29976,29978,29979,29981,29981,29980,29981]} 1. e4 {[%emt 0:01:24]} c6 {[%emt 0:00:10]} 2. d4 {[%emt 0:00:51]} d5 {[%emt 0:00:11]} 3. f3 {[%emt 0:00:40]} dxe4 {[%emt 0:00:37]} 4. fxe4 {[%emt 0:00:39]} e5 {[%emt 0:00:05]} 5. Nf3 {[%emt 0:01:11]} Bg4 {[%emt 0:00:45]} 6. Bc4 {[%emt 0:02:00]} Nd7 $1 {[%emt 0:00:51]} 7. c3 {[%emt 0:02:30] B12: Caro-Kann: Advance Variation.} Bd6 {[%emt 0:23:27] is currently scoring better than 7...Bh5.} 8. Qb3 {[%emt 0:13:34][%csl LRb7,LRf7]} Qe7 {[%emt 0:05:47]} 9. O-O {[%emt 0:08:23][%cal Oc4f7] [#] aiming for Bxf7+! The position is equal.} Ngf6 {[%emt 0:12:16]} 10. Bg5 {[%emt 0:13:42]} O-O {[%emt 0:18:48]} 11. Nbd2 {[%emt 0:06:12]} h6 {[%emt 0:05:12]} 12. Bh4 {[%emt 0:03:16]} b5 {[%emt 0:07:40]} 13. Bd3 {[%emt 0:07:31] [#]} Rab8 $146 {[%emt 0:02:58]} ({Predecessor:} 13... c5 14. Bxb5 Rab8 15. Qc4 cxd4 16. Bxd7 Bxd7 17. cxd4 Bb5 18. Bxf6 Qxf6 19. Nxe5 Qg5 {½-½ (43) Tomczak,J (2603)-Dragun,K (2557) Warsaw 2021}) 14. h3 {[%emt 0:07:18]} Bxf3 {[%emt 0:03:21]} 15. Nxf3 {[%emt 0:07:36]} c5 {[%emt 0:02:36]} 16. dxc5 {[%emt 0:05:57]} Nxc5 {[%emt 0:04:44]} 17. Qc2 {[%emt 0:00:17]} Rfd8 {[%emt 0:02:19]} 18. Bxf6 {[%emt 0:07:21]} (18. Kh1 $5 {[%cal Rh4f6]}) 18... Qxf6 {[%emt 0:02:48]} 19. Rad1 {[%emt 0:05:41][%cal Of3d4]} Qg6 {[%emt 0:02:04]} 20. Qe2 {[%emt 0:01:46]} Nxd3 {[%emt 0:02:34]} 21. Rxd3 {[%emt 0:00:14]} a6 {[%emt 0:00:59]} 22. Nh4 {[%emt 0:01:24]} Bc5+ {[%emt 0:00:41]} 23. Kh2 {[%emt 0:01:12]} Qg5 {[%emt 0:00:06]} 24. Nf3 {[%emt 0:01:10]} Qe7 {[%emt 0:00:17]} 25. Rfd1 {[%emt 0:00:22]} Bb6 {[%emt 0:00:48]} 26. Rd5 {[%emt 0:00:28]} Bc7 {[%emt 0:00:43]} 27. Kh1 {[%emt 0:00:25][%cal Bh2h1,Bh1g1,Bg1f1,Bf1e2,Be2d3][%mdl 32]} Rxd5 {[%emt 0:00:34]} 28. Rxd5 {[%emt 0:00:13]} Rd8 {[%emt 0:00:24]} 29. Qd3 {[%emt 0:00:39]} Kh7 {[%emt 0:00:39]} 30. Kg1 {[%emt 0:00:56]} g6 {[%emt 0:00:27]} 31. Kf1 {[%emt 0:00:28]} Kg7 {[%emt 0:00:17]} 32. Ke2 {[%emt 0:00:22]} Rxd5 {[%emt 0:00:43]} 33. Qxd5 {[%emt 0:00:05]} Qd6 {[%emt 0:00:24]} 34. Qxd6 {[%emt 0:00:28]} Bxd6 $11 {[%emt 0:00:04][%mdl 4096] Endgame KB-KN} 35. c4 {[%emt 0:00:40]} Kf6 {[%emt 0:01:05]} 36. Kd3 {[%emt 0:00:30]} Ke6 {[%emt 0:00:18]} 37. Ne1 {[%emt 0:00:42]} f5 {[%emt 0:00:22]} 38. cxb5 {[%emt 0:00:33]} axb5 {[%emt 0:00:01]} 39. Nc2 {[%emt 0:00:15]} Bc5 {[%emt 0:01:09]} 40. b4 {[%emt 0:00:12]} Be7 {[%emt 0:00:29]} 41. Na3 {[%emt 0:30:12]} Bxb4 {[%emt 0:30:39]} 42. Nxb5 {[%emt 0:00:09]} Ba5 {[%emt 0:00:00]} 43. Na3 {[%emt 0:00:00]} Kf6 {[%emt 0:00:00]} 44. Nc4 {[%emt 0:00:00]} Bc7 {[%emt 0:00:00]} 45. h4 {[%emt 0:00:00]} f4 {[%emt 0:00:00]} 46. a4 {[%emt 0:00:00] Black must now prevent a5.} g5 $2 {[%emt 0:00:00][%mdl 8192] Loses the game.} (46... Ke7 $14) 47. hxg5+ $18 {[%emt 0:00:00]} Kxg5 {[%emt 0:00:00][%cal Of4f3]} 48. a5 {[%emt 0:00:00]} (48. Ke2 $142 Kf6 49. a5) 48... f3 {[%emt 0:03:29]} 49. gxf3 {[%emt 0:00:00]} Kf4 {[%emt 0:00:06]} 50. a6 {[%emt 0:00:00] Intending a7 and mate.} Bb8 {[%emt 0:00:06]} 51. Na5 {[%emt 0:00:00] Threatening mate with Nc6.} Ba7 {[%emt 0:00:28]} 52. Nc6 {[%emt 0:00:00] White mates.} Bb6 {[%emt 0:00:18]} 53. Ke2 {[%emt 0:00:00]} h5 {[%emt 0:00:22] [#]} 54. a7 $1 {[%emt 0:00:00]} Bxa7 {[%emt 0:00:10]} 55. Nxa7 {[%emt 0:00:00]} Kg3 {[%emt 0:00:08]} 56. Nc6 {[%emt 0:00:00]} h4 {[%emt 0:00:35]} 57. Nxe5 {[%emt 0:00:00]} h3 {[%emt 0:00:19]} 58. Ng4 {[%emt 0:00:00] Weighted Error Value: White=0.10 (very precise) /Black=0.28 (precise)} 1-0

[Event "Germany Countries-chT Youth 2022"]
[Site "Wiesbaden"]
[Date "2022.10.01"]
[Round "1"]
[White "Post, Hugo"]
[Black "Krastev, Alexander"]
[Result "1/2-1/2"]
[ECO "B45"]
[WhiteElo "2176"]
[BlackElo "2431"]
[Annotator "TA"]
[PlyCount "139"]
[EventDate "2022.09.28"]
[EventType "team-tourn"]
[EventRounds "7"]
[EventCountry "GER"]
[SourceTitle "playchess.com"]
[Source "ChessBase"]
[SourceQuality "1"]
[TimeControl "40/5400+30:1800+30"]

{[%evp 12,139,41,43,16,21,23,21,21,23,33,35,27,21,19,24,23,24,19,20,30,20,31,26,29,12,12,6,18,-7,-12,0,-4,-18,-10,-18,0,-49,-18,-51,-55,-53,-51,-63,14,0,0,0,0,0,0,0,10,0,3,0,9,0,0,0,9,0,0,0,0,0,0,0,0,0,0,0,0,0,0,0,0,0,0,-32,0,0,0,-32,-32,-32,-32,-32,-32,-32,-32,-32,-32,-32,-32,-32,-32,-32,-32,-32,-32,-32,-32,-32,-32,-32,-32,-32,-32,-32,-32,-32,-32,-32,-32,-32,-32,-32,-32,-32,-32,-32,-32,-32,-32,-32,-32,-32,-32,-32]} 1. e4 {[%emt 0:00:03]} c5 {[%emt 0:00:05]} 2. Nf3 {[%emt 0:00:07][%cal Bg1f3,Bf3d4,Bd4b5,Bb5c7][%mdl 32]} Nc6 {[%emt 0:00:11]} 3. d4 {[%emt 0:00:09]} cxd4 {[%emt 0:00:06]} 4. Nxd4 {[%emt 0:00:04]} Nf6 {[%emt 0:00:05]} 5. Nc3 {[%emt 0:00:09]} e6 {[%emt 0:00:06]} 6. Ndb5 {[%emt 0:00:47]} Bc5 {[%emt 0:00:16]} 7. Bf4 {[%emt 0:00:33] The main line 7.Bf4 scores better than 7.Nd6+.} O-O {[%emt 0:00:08] B45: Sicilian Four Knights.} 8. Bc7 {[%emt 0:00:16]} Qe7 {[%emt 0:00:06]} 9. Bd6 $1 {[%emt 0:00:09]} Bxd6 {[%emt 0:00:05] The position is equal.} 10. Qxd6 {[%emt 0:00:10]} Qd8 {[%emt 0:00:04]} 11. Nc7 {[%emt 0:00:30]} Rb8 {[%emt 0:00:05][%cal Ob7b5]} 12. Be2 {[%emt 0:01:02]} b5 {[%emt 0:00:06] Hoping for ...b4.} 13. e5 {[%emt 0:01:19]} (13. Bxb5 Rb7 14. e5 (14. Bxc6 $2 dxc6 15. Qxd8 Rxd8 $17) 14... Nh5 15. Nxe6 (15. Bxc6 dxc6 16. Qxd8 Rxd8 $17) 15... fxe6 16. Bxc6 dxc6 17. Qxd8 Rxd8 $17) 13... Ne8 {[%emt 0:00:09]} 14. Nxe8 {[%emt 0:00:10] Nc7 is the strong threat.} Rxe8 {[%emt 0:00:04]} 15. O-O {[%emt 0:01:54]} ({Much worse is} 15. Bxb5 Qa5 16. Bxc6 Rxb2 $11) 15... b4 {[%emt 0:00:26]} 16. Ne4 {[%emt 0:00:39]} Bb7 {[%emt 0:00:10]} 17. Qc5 {[%emt 0:05:40] [#]} Rf8 $146 {[%emt 0:00:14]} ({Predecessor:} 17... Ba8 18. Rad1 Rf8 19. f4 Ne7 20. Bf3 Nd5 21. Qxa7 Qb6+ 22. Qxb6 Rxb6 23. Rd2 Ra6 {0-1 (34) Carnicelli,V (2235)-Carlo,E (2288) Premium Chess Arena INT 2020}) 18. Rad1 {[%emt 0:04:29]} Ne7 {[%emt 0:06:46]} 19. Nd6 {[%emt 0:04:16]} Bd5 {[%emt 0:04:18]} 20. Qe3 {[%emt 0:06:02]} Qb6 {[%emt 0:12:02]} 21. Qg3 {[%emt 0:09:01]} f6 {[%emt 0:17:36]} 22. Bd3 {[%emt 0:03:47]} fxe5 {[%emt 0:02:32]} 23. Qxe5 {[%emt 0:08:00]} Rf6 {[%emt 0:01:31]} 24. c4 {[%emt 0:11:46]} (24. Ne4 $11 {is superior.} Rff8 25. Qd6 Qxd6 26. Nxd6) 24... bxc3 $1 $15 {[%emt 0:09:48] aiming for ...Ng6.} 25. bxc3 {[%emt 0:00:07]} Ng6 {[%emt 0:19:20]} 26. Bxg6 {[%emt 0:19:56]} Rxg6 {[%emt 0:04:00]} 27. Ne4 {[%emt 0:02:47]} Rg4 {[%emt 0:07:15]} (27... d6 $15 28. Qd4 Qxd4 29. Rxd4 Rb2) 28. Rd4 {[%emt 0:06:37][%cal Oe4f6] And now Nf6+! would win.} d6 {[%emt 0:06:52]} 29. Qh5 {[%emt 0:00:08] Threatens to win with Nf6+.} ({But not} 29. Nf6+ Kh8 30. Qxd5 exd5 $17) 29... Rxe4 {[%emt 0:00:16]} 30. Rxd5 {[%emt 0:00:03]} Rf8 {[%emt 0:03:23][%cal Ob6f2]} 31. Qd1 {[%emt 0:02:21]} Rd8 {[%emt 0:02:13] [#]} 32. Qd3 $1 {[%emt 0:00:17]} Rf4 {[%emt 0:01:58]} (32... Qc6 33. Qxe4) 33. Rh5 {[%emt 0:00:51]} g6 {[%emt 0:00:29]} 34. Rg5 {[%emt 0:01:04][%cal Og5g6] Strongly threatening Rxg6+!} e5 {[%emt 0:02:24]} 35. h4 {[%emt 0:01:58]} Rf6 {[%emt 0:00:54]} ({Resist} 35... Rxh4 {[#]} 36. Rxg6+ $1 Kh8 37. Re6 $16) 36. Qd5+ {[%emt 0:06:24]} Kg7 {[%emt 0:00:08]} 37. Rg4 {[%emt 0:00:13]} Rdf8 {[%emt 0:01:07][%cal Rf6f2]} 38. Rb4 {[%emt 0:01:05]} Rxf2 {[%emt 0:00:15]} 39. Rxb6 {[%emt 0:00:22]} Rxf1+ {[%emt 0:00:03]} 40. Kh2 {[%emt 0:00:04]} axb6 {[%emt 0:00:06]} 41. Qxd6 $11 {[%emt 0:30:13][%mdl 4096] Endgame KQ-KRR} R1f6 {[%emt 0:18:58]} 42. Qxe5 {[%emt 0:00:00]} h5 {[%emt 0:00:04]} 43. c4 {[%emt 0:00:00]} R8f7 {[%emt 0:00:45]} 44. c5 {[%emt 0:00:00]} bxc5 {[%emt 0:00:14]} 45. Qxc5 {[%emt 0:00:00]} Ra6 {[%emt 0:00:10]} (45... Rf4 $5 {[%cal Rf4h4]} 46. Qa5 Rxh4+ 47. Kg1 Re4 $15) 46. Qe5+ {[%emt 0:00:00]} Kh7 {[%emt 0:00:09]} 47. Qd5 {[%emt 0:00:00]} (47. g4 $5) 47... Rfa7 {[%emt 0:00:11] Black is slightly better.} 48. Qd8 {[%emt 0:00:00]} Rxa2 {[%emt 0:00:12]} 49. Qd4 {[%emt 0:00:00]} Rf7 {[%emt 0:03:17]} 50. Qe4 {[%emt 0:00:00]} Raa7 {[%emt 0:00:48]} 51. Qd4 {[%emt 0:00:00]} Rae7 {[%emt 0:00:12]} 52. Kh3 {[%emt 0:00:38]} Re1 {[%emt 0:04:06]} 53. Kh2 {[%emt 0:01:31]} Ref1 {[%emt 0:01:25]} 54. Qd8 {[%emt 0:02:41]} R1f4 {[%emt 0:00:11]} 55. Kh3 {[%emt 0:00:46]} Re4 {[%emt 0:01:05]} 56. Qd5 {[%emt 0:02:43]} Rfe7 {[%emt 0:02:26]} 57. Qg5 {[%emt 0:00:21]} Kg7 {[%emt 0:02:06]} 58. Qc5 {[%emt 0:00:45]} Rd7 {[%emt 0:00:44]} 59. Qc3+ {[%emt 0:01:04]} Red4 {[%emt 0:01:00]} 60. Qc5 {[%emt 0:00:13]} R4d5 {[%emt 0:00:21]} 61. Qc3+ {[%emt 0:00:04]} Kh7 {[%emt 0:00:34] ( -> ...Rd3+)} 62. Qf6 {[%emt 0:00:06]} Rf5 {[%emt 0:00:08]} 63. Qe6 {[%emt 0:00:16]} Ra7 {[%emt 0:00:06]} 64. Qd6 {[%emt 0:00:23]} Rff7 {[%emt 0:00:19]} 65. Kh2 {[%emt 0:00:20]} Rad7 {[%emt 0:01:13]} 66. Qe6 {[%emt 0:01:01]} Rde7 {[%emt 0:00:04]} 67. Qd6 {[%emt 0:00:11]} Re2 {[%emt 0:00:27]} 68. Kh3 {[%emt 0:01:02]} Re3+ {[%emt 0:01:10]} 69. Kh2 {[%emt 0:00:07]} Re4 {[%emt 0:00:04]} 70. Qd8 {[%emt 0:00:34] Weighted Error Value: White=0.07 (flawless) /Black=0.04 (flawless)} 1/2-1/2

[Event "Germany Countries-chT Youth 2022"]
[Site "Wiesbaden"]
[Date "2022.10.01"]
[Round "1"]
[White "Geltz, Noah"]
[Black "Stork, Oliver"]
[Result "0-1"]
[ECO "B40"]
[WhiteElo "2142"]
[BlackElo "2315"]
[Annotator "TA"]
[PlyCount "56"]
[EventDate "2022.09.28"]
[EventType "team-tourn"]
[EventRounds "7"]
[EventCountry "GER"]
[SourceTitle "playchess.com"]
[Source "ChessBase"]
[SourceQuality "1"]
[TimeControl "40/5400+30:1800+30"]

{[%evp 9,56,0,0,0,15,14,14,0,0,-36,0,0,15,5,56,52,54,48,52,38,47,39,38,-9,-12,-20,-28,-384,-386,-381,-341,-482,-356,-1352,-1303,-2608,-2202,-29986,-29987,-29987,-29988,-29986,-5397,-1720,-1108,-6379,-1074,-1037,-1014]} 1. e4 {[%emt 0:00:03]} c5 {[%emt 0:00:05]} 2. Nf3 {[%emt 0:00:16]} e6 {[%emt 0:00:08]} 3. b3 {[%emt 0:01:14]} a6 {[%emt 0:00:25]} 4. Bb2 {[%emt 0:00:46]} Nc6 {[%emt 0:00:08]} 5. c4 {[%emt 0:01:10]} Nf6 {[%emt 0:00:24][%cal Bg8f6,Bf6g4,Bg4h6,Bh6f5,Bf5h4,Bh4g2][%mdl 32]} 6. e5 {[%emt 0:05:50] B40: Sicilian: 2...e6, Unusual lines.} Ng4 {[%emt 0:00:10]} 7. h3 {[%emt 0:00:58]} Nh6 {[%emt 0:00:08]} 8. Nc3 {[%emt 0:03:07] The position is equal.} d6 {[%emt 0:18:24]} 9. exd6 {[%emt 0:05:57] [#]} Bxd6 $146 {[%emt 0:00:11]} ({Better is} 9... e5 $15) ({Predecessor:} 9... Nf5 10. Ne4 Bxd6 11. g4 Nfd4 12. Nxd4 Nxd4 13. Bxd4 cxd4 14. Nxd6+ Qxd6 15. Bg2 Rb8 {0-1 (30) Ramnath,B (2393)-Sethuraman,S (2553) Hyderabad 2013}) 10. d4 $1 $11 {[%emt 0:06:30]} cxd4 {[%emt 0:12:20]} 11. Nxd4 {[%emt 0:00:18]} Nxd4 {[%emt 0:01:32]} (11... Bd7 $1 $11) 12. Qxd4 $14 {[%emt 0:00:09]} Nf5 {[%emt 0:00:06]} 13. Qd2 {[%emt 0:12:44]} Qc7 {[%emt 0:14:00]} 14. Bd3 {[%emt 0:03:05] [#] Strongly threatening Bxf5.} Nh4 {[%emt 0:15:01]} 15. O-O {[%emt 0:05:53]} Bd7 {[%emt 0:11:00]} (15... Qc6 16. Be4 Qc7 17. Rad1 $16) 16. f4 {[%emt 0:15:22]} (16. Qg5 $14 Ng6 17. Rfe1) 16... Bc6 $11 {[%emt 0:01:19]} 17. Ne4 {[%emt 0:05:58]} O-O-O {[%emt 0:02:16] And now ...Bxe4 would win.} 18. Qe1 {[%emt 0:10:44][%mdl 8192] [#] Loses the game.} ({Avoid the trap} 18. Bxg7 $2 Rhg8 19. c5 Rxg7 $19) (18. c5 $1 $11 {and White has nothing to worry.} Be7 19. Qe2 (19. Be5 Qd7 $11)) 18... Nxg2 $1 $19 {[%emt 0:10:14][%mdl 512]} 19. Kxg2 {[%emt 0:02:23]} f5 {[%emt 0:04:13][%mdl 64] Pin} 20. Kg1 {[%emt 0:09:52]} (20. Rd1 $142 Bxf4 21. Qe2) 20... Bxf4 {[%emt 0:00:12]} 21. Bc2 {[%emt 0:01:03]} (21. Qf2 Rxd3 22. Qxf4 Qxf4 23. Rxf4 Bxe4 24. h4) 21... fxe4 {[%emt 0:02:42]} 22. Bxe4 {[%emt 0:02:16]} Bd2 {[%emt 0:01:03]} 23. Qh4 {[%emt 0:01:50]} Be3+ {[%emt 0:00:11]} ({Weaker is} 23... Bxe4 24. Qxe4 Qg3+ 25. Qg2 Be3+ 26. Kh1 Qxg2+ 27. Kxg2 $17) 24. Kg2 {[%emt 0:02:30]} Rd2+ {[%emt 0:03:29]} 25. Kf3 {[%emt 0:00:06]} Bd4 {[%emt 0:01:27]} (25... Bh6 $142 26. Qxh6 gxh6 27. Bc3 Rd3+ 28. Ke2 Rxc3 29. Rac1 Rxc1 30. Rxc1 Qe5 31. Rg1 Bxe4 32. Rg4 Rf8 33. Ke3 Bb1+ 34. Re4 Qxe4+ 35. Kd2 Qd3+ 36. Ke1 Rf1#) 26. Bxd4 {[%emt 0:00:29] Black is clearly winning.} Rxd4 {[%emt 0:00:06]} 27. Rae1 {[%emt 0:01:30]} Bxe4+ {[%emt 0:00:31]} (27... Qh2 $142 28. Rd1 Rxe4 29. Qxe4 Qxh3+ 30. Ke2 Bxe4) 28. Rxe4 {[%emt 0:00:17]} Rf8+ {[%emt 0:00:04] Weighted Error Value: White=1.19/Black=0.76} 0-1

[Event "Germany Countries-chT Youth 2022"]
[Site "Wiesbaden"]
[Date "2022.10.01"]
[Round "1"]
[White "Heinrich, John"]
[Black "Schneider, Jana"]
[Result "0-1"]
[ECO "C68"]
[WhiteElo "2139"]
[BlackElo "2323"]
[Annotator "TA"]
[PlyCount "78"]
[EventDate "2022.09.28"]
[EventType "team-tourn"]
[EventRounds "7"]
[EventCountry "GER"]
[SourceTitle "playchess.com"]
[Source "ChessBase"]
[SourceQuality "1"]
[TimeControl "40/5400+30:1800+30"]

{[%evp 9,78,14,28,13,28,18,19,22,26,23,24,10,0,12,12,13,25,11,59,60,182,166,288,297,297,257,280,259,340,220,220,212,227,245,233,188,184,172,182,189,180,181,181,179,185,178,170,61,57,0,0,-56,-43,-56,10,-196,-69,-238,-238,-238,-238,-537,-481,-938,-932,-1385,-1131,-4939,-3065,-1663,-1485]} 1. e4 e5 2. Nf3 Nc6 3. Bb5 a6 4. Bxc6 dxc6 5. O-O Qf6 6. d4 {C68: Ruy Lopez: Exchange Variation, sidelines.} exd4 7. Bg5 {[%cal Bc1g5,Bg5h4,Bh4g3][%mdl 32]} Qd6 8. Nxd4 {[%cal Bf3d4,Bd4b3,Bb3a5][%mdl 32] The position is equal.} f6 9. Bh4 c5 10. Nb3 (10. Nf5 Bxf5 11. exf5 O-O-O $15) 10... Qxd1 11. Rxd1 Bd7 12. Bg3 O-O-O (12... c4 13. Na5 $16) 13. Nc3 {[%cal Bb1c3,Bc3d5,Bd5b4][%mdl 32] [#]} c4 $146 (13... Be6 $11 {was preferrable.}) ({Predecessor:} 13... Nh6 14. Nd5 Bd6 15. Bxd6 cxd6 16. a4 Rhe8 17. f3 f5 18. exf5 Bxf5 19. Rd2 Nf7 {1-0 (47) Felix Simoes,R (1825)-De Carvalho,C (2051) Florianopolis 2017}) 14. Na5 $14 b5 (14... Bc5 $14) 15. Nd5 Bd6 (15... Ne7 $142) 16. Bxd6 $18 cxd6 17. Nb4 Be8 18. a4 (18. Nxa6 $6 Ne7 19. b3 d5 $18) 18... Kc7 19. Nxa6+ Kb6 {[#]} 20. Nc5 $1 {[%mdl 512] Pair of Knights!} Rb8 {[#]} (20... bxa4 21. Ncb7) 21. Ncb7 {[%mdl 512]} Rxb7 22. Nxb7 Kxb7 23. axb5 ({Don't play} 23. Rxd6 $6 Ne7 $16) 23... Bxb5 24. Rxd6 {Rd8 is the strong threat.} Ne7 25. Ra5 Bc6 {[#]} 26. Rc5 $1 Ra8 {( -> ...Ra1+)} 27. f3 Ra4 {[#]} 28. Re6 ({White should play} 28. Rd4 $1 $18) 28... Kb6 $14 29. Rh5 (29. Rd5 $1 $14 Ra7 30. Kf2) 29... Ng6 $11 {Hoping for ...Ra1+.} 30. Rd6 (30. Rxh7 $11 Nf8 31. Rxc6+ Kxc6 32. Rxg7) 30... h6 $15 {[%mdl 1024] Black has compensation.} 31. Rd8 Ra2 ({Better is} 31... Ra1+ $15 32. Kf2 Rc1) 32. Rg8 $2 (32. Rb8+ $1 $11 {and White has nothing to worry.} Bb7 33. Rg8) 32... Nf4 ({Black should try} 32... Rxb2 $19 33. Rxg7 Nf4 34. Rxh6 Rxc2 35. Rxf6 c3 36. Rxf4 Rd2) 33. Rf5 $2 (33. Rh4 $1 $15 c3 34. bxc3 (34. Rxf4 $2 cxb2 35. h4 b1=Q+ $19)) 33... Ne2+ $19 34. Kf2 Nd4 35. Rh5 (35. Rb8+ Kc7 36. Rb4 Nxc2 37. Rxc4 Rxb2 38. Rb5 Rxb5 39. Rxc2) 35... Rxb2 {Black is clearly winning.} 36. Ke3 (36. Rb8+ $142 Bb7 37. Rd5 Rxc2+ 38. Ke1) 36... Nxc2+ 37. Kd2 Na3+ 38. Kc3 Rb3+ 39. Kd2 c3+ {Quite a comeback for Black.  Weighted Error Value: White=0.96/Black=0.21 (precise)} 0-1